fUSD/lending_fUSD_20260404
["ID","MTS","AMOUNT","RATE_DAILY","PERIOD"]
[419660888,1775262642606,-500.0,0.00013698,2]
[419660890,1775262642616,-500.0,0.00013698,2]
[419660892,1775262642626,-649.06701174,0.00013698,2]
[419660894,1775262642635,-500.0,0.00013698,2]
[419660895,1775262642645,-500.0,0.00013698,2]
[419660896,1775262642654,-500.0,0.00013698,2]
[419660897,1775262642664,-500.0,0.00013698,2]
[419660898,1775262642673,-500.0,0.00013698,2]
[419660899,1775262642682,-492.17271437,0.00013699,2]
[419660900,1775262642692,-250.0,0.00013955,2]
[419660901,1775262642700,-221.80565358,0.00014049,2]
[419660902,1775262642710,-482.47689046,0.00014191,2]
[419660903,1775262642719,-289.78517149,0.00014323,2]
[419660904,1775262642728,-481.88813798,0.00014345,2]
[419660905,1775262642738,-924.91069265,0.0001449,2]
[419660906,1775262642747,-500.0,0.00014548,2]
[419660907,1775262642756,-729.96297734,0.00014624,2]
[419660908,1775262642766,-520.03590277,0.00014779,2]
[419660909,1775262642775,-617.57035096,0.0001482,2]
[419660910,1775262642785,-744.87447626,0.00014866,2]
[419660911,1775262642794,-300.0,0.00015,2]
[419660912,1775262642803,-885.65965083,0.0001509,2]
[419660913,1775262642813,-1246.17039106,0.00015132,2]
[419660914,1775262642822,-4203.79711218,0.0001514,2]
[419660915,1775262642831,-1276.37839516,0.00015179,2]
[419660916,1775262642840,-10000.0,0.00015205,2]
[419660917,1775262642851,-1371.36,0.00015424,2]
[419660918,1775262642860,-200.0,0.00015428,2]
[419660919,1775262642870,-200.0,0.00015441,2]
[419660920,1775262642879,-339.64,0.00015761,2]
[419660921,1775262642889,-12365.74,0.00015771,2]
[419660922,1775262642898,-406.16288479,0.00015859,2]
[419660923,1775262642907,-500.0,0.0001589,2]
[419660924,1775262642919,-500.0,0.0001589,2]
[419660925,1775262642929,-500.0,0.0001589,2]
[419660926,1775262642938,-500.0,0.0001589,2]
[419660927,1775262642947,-500.0,0.0001589,2]
[419660928,1775262642957,-500.0,0.0001589,2]
[419660929,1775262642966,-500.0,0.0001589,2]
[419660930,1775262642975,-500.0,0.0001589,2]
[419660931,1775262642984,-500.0,0.0001589,2]
[419660932,1775262642993,-500.0,0.0001589,2]
[419660933,1775262643003,-500.0,0.0001589,2]
[419660934,1775262643012,-500.0,0.0001589,2]
[419660935,1775262643022,-500.0,0.0001589,2]
[419660936,1775262643032,-500.0,0.0001589,2]
[419660937,1775262643041,-500.0,0.0001589,2]
[419660938,1775262643052,-500.0,0.0001589,2]
[419660940,1775262643062,-500.0,0.0001589,2]
[419660942,1775262643072,-150.0,0.000159,2]
[419660943,1775262643082,-150.0,0.000159,2]
[419660944,1775262643092,-150.0,0.000159,2]
[419660945,1775262643103,-150.0,0.000159,2]
[419660946,1775262643113,-150.0,0.000159,2]
[419660947,1775262643122,-150.79294183,0.000159,2]
[419660948,1775262643132,-1371.36,0.00016195,2]
[419660949,1775262643142,-166.66,0.00016201,2]
[419660950,1775262643152,-158.36,0.00016438,2]
[419660951,1775262643162,-166.66,0.00016736,2]
[419660952,1775262643171,-1371.36,0.00016966,2]
[419660953,1775262643181,-166.66,0.00017271,2]
[419660954,1775262643191,-1371.36,0.00017737,2]
[419660955,1775262643200,-166.66,0.00017806,2]
[419660956,1775262643210,-166.66,0.0001834,2]
[419660957,1775262643220,-1371.36,0.00018509,2]
[419660958,1775262643230,-514.0,0.00018685,6]
[419660959,1775262643240,-166.66,0.00018875,2]
[419660960,1775262643250,-2758.17338399,0.00019318,2]
[419660961,1775262643259,-4203.79711218,0.0001945,2]
[419660962,1775262643269,-60861.15,0.00020347,2]
[419660964,1775262643279,-406.16288479,0.00020887,2]
[419660966,1775262643289,-158.36,0.00021575,2]
[419660968,1775262643298,-383.0,0.00022,2]
[419660970,1775262643308,-2758.17338399,0.00022147,2]
[419660972,1775262643317,-2348.01,0.0002274,2]
[419660974,1775262643327,-383.0,0.00023,2]
[419660976,1775262643337,-4203.79711218,0.0002376,2]
[419660978,1775262643346,-609.41607737,0.00023866,2]
[419660980,1775262643356,-383.0,0.00024,2]
[419660982,1775262643366,-514.0,0.00024259,11]
[419660984,1775262643375,-500.0,0.00024899,2]
[419660986,1775262643385,-500.0,0.00024899,2]
[419660988,1775262643395,-392735.296687,0.000249,2]
[419660990,1775262643404,-2758.17338399,0.00024977,2]
[419660992,1775262643414,-383.0,0.00025,2]
[419660994,1775262643423,-406.16288479,0.00025916,2]
[419660996,1775262643433,-720.95970592,0.00025916,2]
[419660999,1775262643442,-383.0,0.00026,2]
[419661001,1775262643452,-1000.0,0.0002601,2]
[419661003,1775262643462,-158.36,0.00026712,2]
[419661007,1775262643471,-188.80155401,0.00027,2]
[419661009,1775262643482,-393.0,0.00027,2]
[419661013,1775262643492,-213.18256522,0.00027,2]
[419661015,1775262643502,-518.27894344,0.00027,2]
[419661017,1775262643512,-188.16080491,0.00027,2]
[419661019,1775262643522,-2300.71,0.00027397,10]
[419661021,1775262643532,-1917.26,0.00027397,10]
[419661022,1775262643542,-2758.17338399,0.00027806,2]
[419661023,1775262643552,-4203.79711218,0.0002807,2]
[419661024,1775262643562,-155.782,0.00028415,2]
[419661025,1775262643571,-155.0,0.00028592,2]
[419661026,1775262643581,-514.0,0.00029833,16]
[419661027,1775262643591,-5534.0,0.000302,2]
[419661028,1775262643600,-2758.17338399,0.00030635,2]
[419661029,1775262643611,-5533.0,0.000308,3]
[419661030,1775262643620,-406.16288479,0.00030944,2]
[419661031,1775262643630,-5533.0,0.000314,5]
[419661033,1775262643641,-158.36,0.00031849,30]
[419661035,1775262643651,-4203.79711218,0.0003238,2]
[419661037,1775262643660,-3240.0,0.00032777,120]
[419661039,1775262643670,-150.0,0.00033288,7]
[419661041,1775262643679,-150.0,0.00033288,7]
[419661043,1775262643689,-150.0,0.00033288,7]
[419661045,1775262643700,-150.19757992,0.00033288,7]
[419661047,1775262643710,-150.0,0.00033288,7]
[419661049,1775262643720,-150.0,0.00033288,7]
[419661051,1775262643731,-150.0,0.00033288,7]
[419661053,1775262643741,-286.92407254,0.00033288,7]
[419661055,1775262643751,-150.0,0.00033288,7]
[419661057,1775262643761,-150.0,0.00033288,7]
[419661059,1775262643770,-150.0,0.00033288,7]
[419661061,1775262643780,-150.0,0.00033288,7]
[419661063,1775262643789,-2758.17338399,0.00033465,2]
[419661065,1775262643800,-159.65,0.000335,30]
[419661067,1775262643809,-5759.84,0.000335,2]
[419661069,1775262643819,-150.0,0.00033552,7]
[419661071,1775262643829,-3940.93,0.0003356,2]
[419661073,1775262643839,-150.0,0.00033596,7]
[419661075,1775262643848,-150.0,0.00033699,7]
[419661077,1775262643857,-150.0,0.00033816,7]
[419661079,1775262643867,-150.0,0.00033904,7]
[419661081,1775262643877,-2348.01,0.00033973,2]
[419661083,1775262643887,-150.0,0.00034027,7]
[419661085,1775262643897,-150.0,0.0003408,7]
[419661087,1775262643907,-150.0,0.0003411,7]
[419661089,1775262643917,-150.0,0.00034212,7]
[419661091,1775262643927,-150.0,0.00034344,7]
[419661093,1775262643936,-383.0,0.00034394,30]
[419661095,1775262643946,-150.0,0.00034521,7]
[419661097,1775262643956,-150.0,0.00034521,7]
[419661099,1775262643967,-150.0,0.00034609,7]
[419661101,1775262643977,-150.0,0.00034767,7]
[419661103,1775262643986,-1500.0,0.00034795,2]
[419661105,1775262643996,-150.0,0.00034829,7]
[419661107,1775262644006,-150.0,0.00034873,7]
[419661109,1775262644017,-150.0,0.00034932,7]
[419661111,1775262644026,-150.0,0.00035137,7]
[419661113,1775262644035,-150.0,0.00035137,7]
[419661115,1775262644044,-646.9210908,0.00035168,120]
[419661117,1775262644052,-351.2263433,0.00035168,120]
[419661119,1775262644062,-367.4678758,0.00035168,120]
[419661121,1775262644076,-201.6534796,0.00035168,120]
[419661124,1775262644090,-246.4083485,0.00035168,120]
[419661126,1775262644104,-164.6005604,0.00035168,120]
[419661129,1775262644117,-823.8067803,0.00035168,120]
[419661131,1775262644127,-606.3731155,0.00035168,120]
[419661133,1775262644140,-500.0,0.00035168,120]
[419661135,1775262644152,-500.0,0.00035168,120]
[419661138,1775262644165,-500.0,0.00035168,120]
[419661140,1775262644178,-500.0,0.00035168,120]
[419661142,1775262644192,-500.0,0.00035168,120]
[419661145,1775262644205,-500.0,0.00035168,120]
[419661147,1775262644220,-500.0,0.00035168,120]
[419661150,1775262644233,-500.0,0.00035168,120]
[419661152,1775262644246,-500.0,0.00035168,120]
[419661154,1775262644258,-500.0,0.00035168,120]
[419661157,1775262644272,-549.6474402,0.00035168,120]
[419661159,1775262644284,-315.0416991,0.00035168,120]
[419661161,1775262644295,-500.0,0.00035271,5]
[419661163,1775262644306,-500.0,0.00035271,5]
[419661165,1775262644316,-226.80144541,0.00035271,5]
[419661168,1775262644330,-500.0,0.00035271,5]
[419661170,1775262644343,-500.30149331,0.00035271,5]
[419661173,1775262644357,-500.0,0.00035271,5]
[419661175,1775262644370,-500.0,0.00035271,5]
[419661177,1775262644382,-500.0,0.00035271,5]
[419661180,1775262644395,-150.0,0.00035342,7]
[419661182,1775262644408,-383.0,0.00035394,30]
[419661185,1775262644421,-150.0,0.00035401,7]
[419661187,1775262644434,-514.0,0.00035407,21]
[419661189,1775262644444,-150.0,0.00035445,7]
[419661191,1775262644454,-388.43757161,0.00035488,5]
[419661193,1775262644464,-500.50490882,0.00035488,5]
[419661196,1775262644478,-500.0,0.00035488,5]
[419661198,1775262644490,-150.0,0.00035507,7]
[419661200,1775262644501,-150.0,0.00035665,7]
[419661202,1775262644512,-5604.042,0.00035697,42]
[419661204,1775262644524,-296.725,0.00035697,42]
[419661207,1775262644537,-150.0,0.00035753,7]
[419661209,1775262644549,-150.0,0.00035753,7]
[419661211,1775262644560,-500.0,0.00035819,5]
[419661214,1775262644573,-500.0,0.00035819,5]
[419661216,1775262644584,-150.0,0.0003593,7]
[419661218,1775262644594,-406.16288479,0.00035972,2]
[419661220,1775262644605,-5759.84,0.00036,2]
[419661223,1775262644616,-160.0,0.00036,120]
[419661225,1775262644627,-150.0,0.00036062,7]
[419661227,1775262644638,-150.0,0.00036164,7]
[419661229,1775262644649,-150.0,0.00036194,7]
[419661231,1775262644660,-150.0,0.00036247,7]
[419661234,1775262644673,-2758.17338399,0.00036294,2]
[419661236,1775262644685,-150.0,0.0003637,7]
[419661238,1775262644695,-383.0,0.00036394,30]
[419661240,1775262644707,-150.0,0.00036458,7]
[419661242,1775262644718,-150.0,0.00036575,7]
[419661243,1775262644728,-150.0,0.00036678,7]
[419661245,1775262644739,-4203.79711218,0.0003669,2]
[419661247,1775262644750,-150.0,0.00036722,7]
[419661249,1775262644761,-2463.0,0.00036896,2]
[419661252,1775262644777,-6017.0,0.00036896,2]
[419661254,1775262644789,-609.41607737,0.000369,2]
[419661256,1775262644800,-500.0,0.00036973,5]
[419661258,1775262644811,-500.0,0.00036973,5]
[419661259,1775262644822,-418.56315304,0.00036973,5]
[419661261,1775262644834,-500.44640306,0.00036973,5]
[419661263,1775262644845,-527.58662996,0.00036973,5]
[419661265,1775262644857,-158.36,0.00036986,30]
[419661267,1775262644868,-150.0,0.00036986,7]
[419661269,1775262644880,-150.0,0.00036986,7]
[419661271,1775262644891,-150.0,0.00036986,7]
[419661273,1775262644902,-150.0,0.00036986,7]
[419661275,1775262644914,-150.0,0.00036986,7]
[419661277,1775262644925,-217.21806696,0.0003699,2]
[419661279,1775262644936,-1842618.14336833,0.00037,2]
[419661281,1775262644948,-151.0,0.00037,7]
[419661283,1775262644958,-151.0,0.00037,7]
[419661285,1775262644970,-151.0,0.00037,7]
[419661287,1775262644981,-151.0,0.00037,7]
[419661290,1775262644992,-151.0,0.00037,7]
[419661292,1775262645004,-151.0,0.00037,7]
[419661294,1775262645014,-151.0,0.00037,7]
[419661296,1775262645025,-151.0,0.00037,7]
[419661298,1775262645037,-151.0,0.00037,7]
[419661300,1775262645047,-383.0,0.00037394,30]
[419661301,1775262645060,-435.0,0.00037663,30]
[419661303,1775262645071,-264.0,0.00037663,30]
[419661305,1775262645082,-383.0,0.00038394,30]
[419661307,1775262645093,-500.0,0.000387,120]
[419661309,1775262645104,-500.0,0.000387,120]
[419661311,1775262645115,-500.0,0.000387,120]
[419661313,1775262645127,-500.0,0.000387,120]
[419661315,1775262645138,-500.0,0.000387,120]
[419661317,1775262645148,-500.0,0.000387,120]
[419661319,1775262645160,-500.0,0.000387,120]
[419661321,1775262645170,-500.0,0.000387,120]
[419661323,1775262645181,-500.0,0.000387,120]
[419661325,1775262645191,-500.0,0.000387,120]
[419661328,1775262645202,-500.0,0.000387,120]
[419661329,1775262645213,-700.0,0.00039058,2]
[419661331,1775262645224,-227.7,0.00039309,5]
[419661333,1775262645235,-383.0,0.00039394,30]
[419661335,1775262645246,-150.0,0.00039724,7]
[419661337,1775262645258,-5759.84,0.000398,30]
[419661339,1775262645269,-1558.0,0.00039828,5]
[419661341,1775262645280,-1240.0,0.00039828,5]
[419661344,1775262645290,-1689.04691657,0.00039862,2]
[419661346,1775262645301,-6017.0,0.00039896,2]
[419661348,1775262645312,-302.0,0.00039991,7]
[419661350,1775262645323,-383.0,0.00040394,30]
[419661352,1775262645334,-150.0,0.000405,120]
[419661355,1775262645345,-2110.0,0.000406,30]
[419661357,1775262645356,-381.4024,0.0004068,120]
[419661359,1775262645367,-381.40241,0.0004068,120]
[419661361,1775262645378,-381.40241,0.0004068,120]
[419661363,1775262645389,-381.40241,0.0004068,120]
[419661365,1775262645400,-381.40241,0.0004068,120]
[419661368,1775262645412,-224.0,0.00040689,2]
[419661370,1775262645423,-1564.31,0.00040788,30]
[419661372,1775262645433,-1564.31,0.00040788,30]
[419661374,1775262645444,-1564.31,0.00040788,30]
[419661377,1775262645455,-1564.31,0.00040788,30]
[419661380,1775262645466,-1564.31,0.00040788,30]
[419661383,1775262645476,-1564.31,0.00040788,30]
[419661387,1775262645488,-1564.31,0.00040788,30]
[419661390,1775262645499,-1564.31,0.00040788,30]
[419661393,1775262645510,-1564.31,0.00040788,30]
[419661396,1775262645521,-1564.31,0.00040788,30]
[419661399,1775262645532,-1564.31,0.00040788,30]
[419661404,1775262645543,-1564.31,0.00040788,30]
[419661407,1775262645555,-1564.31,0.00040788,30]
[419661409,1775262645566,-1564.31,0.00040788,30]
[419661411,1775262645576,-1564.31,0.00040788,30]
[419661413,1775262645588,-1564.31,0.00040788,30]
[419661415,1775262645599,-1564.31,0.00040788,30]
[419661417,1775262645610,-1564.31,0.00040788,30]
[419661419,1775262645621,-1564.31,0.00040788,30]
[419661421,1775262645632,-1564.31,0.00040788,30]
[419661423,1775262645643,-1564.31,0.00040788,30]
[419661426,1775262645654,-1564.31,0.00040788,30]
[419661428,1775262645665,-1564.31,0.00040788,30]
[419661430,1775262645677,-1564.31,0.00040788,30]
[419661432,1775262645688,-1564.31,0.00040788,30]
[419661434,1775262645698,-1564.31,0.00040788,30]
[419661436,1775262645709,-1564.31,0.00040788,30]
[419661438,1775262645720,-1564.31,0.00040788,30]
[419661440,1775262645731,-1564.31,0.00040788,30]
[419661442,1775262645741,-1564.31,0.00040788,30]
[419661444,1775262645752,-1564.31,0.00040788,30]
[419661446,1775262645763,-1564.31,0.00040788,30]
[419661448,1775262645773,-1147.19,0.00040788,30]
[419661450,1775262645784,-1564.31,0.00040788,30]
[419661452,1775262645794,-1564.33,0.00040788,30]
[419661454,1775262645805,-1564.31,0.00040788,30]
[419661456,1775262645816,-1564.31,0.00040788,30]
[419661458,1775262645827,-1564.31,0.00040788,30]
[419661460,1775262645838,-1564.31,0.00040788,30]
[419661462,1775262645850,-500.0,0.00040818,60]
[419661464,1775262645861,-500.0,0.00040818,60]
[419661466,1775262645873,-500.0,0.00040818,60]
[419661468,1775262645884,-500.0,0.00040818,60]
[419661469,1775262645896,-500.0,0.00040818,60]
[419661470,1775262645908,-331.02953618,0.00040818,60]
[419661471,1775262645919,-251.59239178,0.00040826,30]
[419661472,1775262645931,-1564.31,0.00040855,30]
[419661473,1775262645942,-1564.29,0.00040855,30]
[419661474,1775262645953,-1063.28,0.00040861,120]
[419661475,1775262645966,-1564.31,0.00040882,30]
[419661476,1775262645977,-1564.31,0.00040882,30]
[419661477,1775262645988,-1564.31,0.00040882,30]
[419661478,1775262645999,-1564.31,0.00040882,30]
[419661480,1775262646010,-2000.0,0.000409,7]
[419661482,1775262646022,-514.0,0.00040981,26]
[419661484,1775262646033,-406.16288479,0.00041,2]
[419661486,1775262646046,-150.0,0.00041,120]
[419661489,1775262646057,-200.0,0.00041,10]
[419661491,1775262646069,-2000.0,0.00041,7]
[419661493,1775262646082,-4203.79711218,0.00041,28]
[419661495,1775262646094,-720.95970592,0.00041,2]
[419661498,1775262646106,-217.21806696,0.00041006,7]
[419661500,1775262646117,-151.0,0.00041013,14]
[419661502,1775262646128,-151.0,0.00041013,14]
[419661504,1775262646140,-500.0,0.00041015,2]
[419661506,1775262646152,-500.0,0.00041015,2]
[419661509,1775262646164,-500.0,0.00041015,2]
[419661511,1775262646176,-500.0,0.00041015,2]
[419661513,1775262646187,-500.0,0.00041015,2]
[419661515,1775262646199,-500.0,0.00041015,2]
[419661517,1775262646209,-500.0,0.00041015,2]
[419661519,1775262646220,-500.0,0.00041015,2]
[419661521,1775262646231,-500.0,0.00041015,2]
[419661524,1775262646243,-500.0,0.00041015,2]
[419661526,1775262646254,-500.0,0.00041015,2]
[419661528,1775262646265,-500.0,0.00041015,2]
[419661530,1775262646276,-500.0,0.00041015,2]
[419661532,1775262646287,-500.0,0.00041015,2]
[419661534,1775262646299,-500.0,0.00041015,2]
[419661536,1775262646311,-500.0,0.00041015,2]
[419661538,1775262646322,-500.0,0.00041015,2]
[419661541,1775262646333,-6313.0515716,0.00041016,2]
[419661543,1775262646344,-564108.1169323,0.00041016,2]
[419661545,1775262646355,-390.31346696,0.00041073,5]
[419661547,1775262646366,-162.50429034,0.00041073,5]
[419661549,1775262646378,-151.0,0.00041092,14]
[419661551,1775262646390,-553.45203859,0.00041094,60]
[419661554,1775262646403,-553.45203859,0.00041094,60]
[419661556,1775262646414,-1800.0,0.00041095,120]
[419661558,1775262646425,-1800.0,0.00041095,120]
[419661560,1775262646437,-1800.0,0.00041095,120]
[419661562,1775262646448,-1800.0,0.00041095,120]
[419661565,1775262646460,-1800.0,0.00041095,120]
[419661567,1775262646471,-1800.0,0.00041095,120]
[419661569,1775262646483,-1800.0,0.00041095,120]
[419661571,1775262646495,-1800.0,0.00041095,120]
[419661574,1775262646507,-1800.0,0.00041095,120]
[419661576,1775262646518,-1800.0,0.00041095,120]
[419661578,1775262646529,-1800.0,0.00041095,120]
[419661580,1775262646541,-1800.0,0.00041095,120]
[419661582,1775262646553,-1800.0,0.00041095,120]
[419661584,1775262646564,-1800.0,0.00041095,120]
[419661587,1775262646575,-1800.0,0.00041095,120]
[419661589,1775262646586,-1800.0,0.00041095,120]
[419661591,1775262646597,-1800.0,0.00041095,120]
[419661593,1775262646608,-1800.0,0.00041095,120]
[419661595,1775262646619,-1800.0,0.00041095,120]
[419661597,1775262646631,-1800.0,0.00041095,120]
[419661600,1775262646643,-1800.0,0.00041095,120]
[419661602,1775262646654,-1800.0,0.00041095,120]
[419661604,1775262646665,-1800.0,0.00041095,120]
[419661606,1775262646677,-1800.0,0.00041095,120]
[419661608,1775262646688,-1800.0,0.00041095,120]
[419661610,1775262646699,-1800.0,0.00041095,120]
[419661613,1775262646710,-1800.0,0.00041095,120]
[419661615,1775262646721,-1800.0,0.00041095,120]
[419661617,1775262646732,-1800.0,0.00041095,120]
[419661619,1775262646743,-1800.0,0.00041095,120]
[419661621,1775262646754,-1800.0,0.00041095,120]
[419661624,1775262646766,-1800.0,0.00041095,120]
[419661626,1775262646776,-1800.0,0.00041095,120]
[419661628,1775262646788,-1800.0,0.00041095,120]
[419661630,1775262646799,-1800.0,0.00041095,120]
[419661633,1775262646811,-1800.0,0.00041095,120]
[419661635,1775262646822,-1800.0,0.00041095,120]
[419661637,1775262646834,-1800.0,0.00041095,120]
[419661640,1775262646847,-1800.0,0.00041095,120]
[419661642,1775262646858,-1800.0,0.00041095,120]
[419661644,1775262646867,-1800.0,0.00041095,120]
[419661646,1775262646876,-1800.0,0.00041095,120]
[419661648,1775262646886,-1800.0,0.00041095,120]
[419661650,1775262646895,-1800.0,0.00041095,120]
[419661652,1775262646905,-1800.0,0.00041095,120]
[419661654,1775262646914,-500.0,0.00041095,120]
[419661656,1775262646923,-500.0,0.00041095,120]
[419661658,1775262646932,-223.21118844,0.00041095,120]
[419661659,1775262646942,-500.0,0.00041095,120]
[419661662,1775262646952,-500.0,0.00041095,120]
[419661663,1775262646962,-500.0,0.00041095,120]
[419661666,1775262646972,-1860.0,0.00041095,120]
[419661668,1775262646982,-243.97,0.00041095,120]
[419661670,1775262646991,-500.0,0.00041095,120]
[419661672,1775262647001,-500.15403191,0.00041095,120]
[419661674,1775262647010,-500.0,0.00041095,120]
[419661675,1775262647020,-500.0,0.00041095,120]
[419661677,1775262647028,-500.0,0.00041095,120]
[419661679,1775262647038,-500.0,0.00041095,2]
[419661729,1775262647483,-500.0,0.00041095,120]
[419661733,1775262647515,-500.0,0.00041095,120]
[419661736,1775262647531,-500.0,0.00041095,120]
[419661737,1775262647551,-500.0,0.00041095,120]
[419661738,1775262647563,-512.87121491,0.00041095,120]
[419661739,1775262647572,-500.0,0.00041095,120]
[419661740,1775262647581,-500.0,0.00041095,120]
[419661741,1775262647590,-500.0,0.00041095,120]
[419661742,1775262647599,-500.0,0.00041095,120]
[419661743,1775262647608,-416.9110647,0.00041095,120]
[419661744,1775262647618,-500.0,0.00041095,120]
[419661745,1775262647627,-500.0,0.00041095,120]
[419661746,1775262647636,-500.0,0.00041095,120]
[419661747,1775262647645,-622.14,0.00041095,120]
[419661748,1775262647655,-1649.0,0.00041095,120]
[419661749,1775262647663,-500.0,0.00041095,120]
[419661750,1775262647672,-1274.24,0.00041095,120]
[419661751,1775262647682,-500.0,0.00041095,120]
[419661752,1775262647691,-593.17,0.00041095,120]
[419661753,1775262647700,-150.0,0.00041095,2]
[419661754,1775262647709,-282.37306361,0.00041095,120]
[419661755,1775262647719,-500.0,0.00041095,120]
[419661757,1775262647728,-9306.01431476,0.00041095,2]
[419661758,1775262647736,-150.0,0.00041095,2]
[419661759,1775262647745,-817.99,0.00041095,120]
[419661761,1775262647755,-500.0,0.00041095,120]
[419661762,1775262647763,-853.09,0.00041095,120]
[419661763,1775262647772,-56953.68871363,0.00041095,2]
[419661764,1775262647781,-500.0,0.00041095,120]
[419661765,1775262647790,-500.0,0.00041095,120]
[419661766,1775262647799,-500.0,0.00041095,120]
[419661767,1775262647808,-500.0,0.00041095,120]
[419661768,1775262647818,-500.0,0.00041095,120]
[419661769,1775262647826,-500.0,0.00041095,120]
[419661770,1775262647836,-500.0,0.00041095,120]
[419661771,1775262647845,-500.0,0.00041095,120]
[419661772,1775262647855,-500.0,0.00041095,120]
[419661773,1775262647867,-500.0,0.00041095,120]
[419661774,1775262647876,-500.0,0.00041095,30]
[419661775,1775262647885,-500.0,0.00041095,120]
[419661776,1775262647894,-500.0,0.00041095,120]
[419661777,1775262647904,-500.0,0.00041095,120]
[419661778,1775262647913,-500.0,0.00041095,120]
[419661779,1775262647922,-500.0,0.00041095,120]
[419661780,1775262647932,-500.0,0.00041095,120]
[419661781,1775262647941,-175.97336056,0.00041095,120]
[419661782,1775262647951,-500.0,0.00041095,12]
[419661783,1775262647960,-500.0,0.00041095,120]
[419661784,1775262647970,-735.17,0.00041095,120]
[419661785,1775262647979,-500.0,0.00041095,120]
[419661786,1775262647988,-500.0,0.00041095,14]
[419661787,1775262647997,-500.0,0.00041095,120]
[419661788,1775262648007,-500.0,0.00041095,120]
[419661789,1775262648017,-500.0,0.00041095,120]
[419661790,1775262648026,-500.0,0.00041095,120]
[419661791,1775262648035,-500.0,0.00041095,120]
[419661792,1775262648044,-500.0,0.00041095,120]
[419661793,1775262648054,-500.0,0.00041095,120]
[419661794,1775262648063,-500.0,0.00041095,120]
[419661795,1775262648072,-500.0,0.00041095,120]
[419661796,1775262648081,-500.0,0.00041095,120]
[419661797,1775262648090,-500.0,0.00041095,2]
[419661798,1775262648101,-500.0,0.00041095,120]
[419661799,1775262648110,-500.0,0.00041095,120]
[419661800,1775262648119,-500.0,0.00041095,120]
[419661801,1775262648129,-500.0,0.00041095,120]
[419661802,1775262648139,-500.0,0.00041095,120]
[419661803,1775262648148,-516.71,0.00041095,120]
[419661804,1775262648158,-500.0,0.00041095,120]
[419661805,1775262648167,-983.55,0.00041095,120]
[419661806,1775262648176,-500.0,0.00041095,120]
[419661807,1775262648185,-500.0,0.00041095,120]
[419661808,1775262648194,-500.0,0.00041095,120]
[419661809,1775262648203,-500.0,0.00041095,120]
[419661810,1775262648211,-500.0,0.00041095,120]
[419661811,1775262648220,-500.0,0.00041095,120]
[419661812,1775262648229,-500.0,0.00041095,120]
[419661813,1775262648238,-500.0,0.00041095,120]
[419661814,1775262648247,-500.0,0.00041095,120]
[419661815,1775262648256,-303.39226265,0.00041095,120]
[419661816,1775262648266,-500.0,0.00041095,120]
[419661817,1775262648274,-500.0,0.00041095,120]
[419661818,1775262648283,-500.0,0.00041095,120]
[419661819,1775262648292,-500.0,0.00041095,120]
[419661820,1775262648301,-500.0,0.00041095,120]
[419661821,1775262648310,-500.0,0.00041095,120]